Cogmind - Beta 14 *** ADVENTURER MODE // 2024.08.30 @ 03:30:32 Player: Ms. V3-11A Result: Destroyed by TA-KMZ(R) with Subdweller Machine Gun Performance ------------- Evolutions (0) 0 Regions Visited (2) 400 Robots Destroyed (35) 175 Value Destroyed (980) 980 Prototype IDs (4) 80 Alien Tech Used (0) 0 Bonus (-79) -79 TOTAL SCORE: 1556 Bonus ------- Friendly Fire -79 Cogmind --------- Core Integrity 0/250 Matter 1/300 Energy 100/100 System Corruption 5% Temperature Cool (0) Movement Walking (280) Ox2 Location -10/Subcaves Parts ------- > --- POWER (1) -------- (None) > --- PROPULSION (2) --- Makeshift Leg > --- UTILITY (2) ------ High-capacity Storage Unit > --- WEAPON (2) ------- Battle Cannon Slug Cannon > --- INVENTORY (20) --- Spiked Treads Makeshift Leg Cooling System Cooling System High-capacity Storage Unit High-capacity Battery (250) Subdweller Optics Scrap Shield Riot Gun Makeshift Laser Subdweller Beam Cannon Shotgun Shotgun Shotgun Subdweller Machine Gun Barrage Gun Grenade Launcher Makeshift Sword Peak State ------------ > --- POWER ------------ Ion Engine > --- PROPULSION ------- Light Treads Spiked Treads > --- UTILITY ---------- High-capacity Storage Unit Medium Armor Plating > --- WEAPON ----------- Battle Cannon Slug Cannon > --- INVENTORY -------- Makeshift Leg Makeshift Leg Cooling System Cooling System High-capacity Storage Unit High-capacity Battery Subdweller Optics Scrap Shield Riot Gun Makeshift Laser Subdweller Beam Cannon Shotgun Shotgun Shotgun Subdweller Machine Gun Barrage Gun Grenade Launcher Makeshift Sword [Rating: 17] Favorites ----------- Power Ion Engine Engine Ion Engine Propulsion Light Treads Treads Light Treads Leg Aluminum Leg Utility High-capacity Storage Unit Device Structural Scanner Storage High-capacity Storage Unit Protection Medium Armor Plating Weapon Battle Cannon Energy Gun EM Pulse Gun Energy Cannon Particle Cannon Ballistic Gun Light Assault Rifle Ballistic Cannon Battle Cannon Launcher Grenade Launcher Slashing Weapon Makeshift Sword Build | -11 -10 -10 ------- Run | Yrd Mat Sub Slots Evolved . | . . . Power . | . . . Propulsion . | . . . Utility . | . . . Weapon . | . . . Parts Attached 29 | . 6 23 Power 2 | . . 2 Engine 2 | . . 2 Core . | . . . Reactor . | . . . Propulsion 9 | . 2 7 Treads 6 | . . 6 Leg 3 | . 2 1 Wheel . | . . . Hover . | . . . Flight . | . . . Utility 5 | . 2 3 Device 1 | . 1 . Storage 1 | . 1 . Processor . | . . . Hackware . | . . . Protection 3 | . . 3 Artifact . | . . . Weapon 13 | . 2 11 Energy Gun 2 | . 1 1 Energy Cannon 3 | . . 3 Ballistic Gun 1 | . . 1 Ballistic Cannon 5 | . . 5 Launcher 1 | . 1 . Special Weapon . | . . . Impact Weapon . | . . . Slashing Weapon 1 | . . 1 Piercing Weapon . | . . . Special Melee Weapon . | . . . Unidentified Prototypes . | . . . Corrupted Parts 1 | . . 1 System Corruption 2 | . . 2 Parts Lost 7 | . . 7 Power 1 | . . 1 Propulsion 2 | . . 2 Utility 3 | . . 3 Weapon 1 | . . 1 Highest Loss Streak 3 | . . 3 To Critical Strikes . | . . . Average Slot Usage (%) 96 | . 92 99 Engine 13 | . 14 13 Treads 17 | . . 27 Leg 10 | . 28 . Device 2 | . 6 . Storage 14 | . 14 14 Protection 8 | . . 13 Energy Gun 5 | . 13 . Energy Cannon 2 | . . 4 Ballistic Gun 7 | . 14 3 Ballistic Cannon 11 | . . 18 Peak Build Rating 17 | 6 10 17 Average Rating 12 | 6 8 14 On Entrance 7 | 6 6 10 Naked Turns . | . . . Heaviest Build 62 | 11 51 62 Greatest Support 40 | 20 20 40 Greatest Overweight (x) 2 | . 2 2 Average Overweight (x) 1 | . 1 1 Largest Inventory Capacity 20 | 8 20 20 Average Capacity 19 | 8 19 20 Most Carried 20 | 5 20 20 Average Carried 19 | 4 18 19 Final Capacity 20 | 8 20 20 Final Carried 20 | 4 20 19 Class Distribution -------------------- 99% | Mutant Dominant Class ---------------- Mutant | -10/Materials Mutant | -10/Subcaves Resources | -11 -10 -10 ----------- Run | Yrd Mat Sub Matter Collected 1291 | 200 41 1050 Remotely . | . . . Salvage Created 939 | . 320 619 Parts 58 | . 24 34 Haulers Intercepted 1 | . 1 . Recyclers Shooed . | . . . Parts Field Recycled . | . . . Retrieved Matter . | . . . Parts Self-Destructed 13 | . . 13 Prevented . | . . . Kills | -11 -10 -10 ------- Run | Yrd Mat Sub Combat Hostiles Destroyed 30 | . 9 21 Guns 14 | . 8 6 Cannons 15 | . . 15 AOE 1 | . 1 . Classes Destroyed 8 | . 3 5 Hauler 1 | . 1 . Turret 2 | . . 2 Swarmer 10 | . 5 5 Grunt 6 | . 4 2 Sentry 1 | . . 1 Cobbler 1 | . . 1 Subdweller 13 | . . 13 Zionite 2 | . . 2 Best Kill Streak 4 | . 3 4 Combat Bots Only 4 | . 3 4 Max Kills in Single Turn 2 | . 2 2 Gunslinging 1 | . 1 . Exploded 1 | . 1 . Melee . | . . . Uniques/NPCs Destroyed . | . . . Combat | -11 -10 -10 -------- Run | Yrd Mat Sub Hostile Shots Fired 215 | . 32 183 Missed 74 | . 9 65 Damage Taken 1818 | . 258 1560 Core 263 | . 51 212 Absorbed by Shields . | . . . Ignored by Resistances 532 | . 80 452 Core Remaining (%) 100 | 100 . . Volleys Fired 135 | . 24 111 Largest 2 | . 2 2 Hottest 107 | . 60 107 Shots Fired 255 | . 50 205 Gun 82 | . 49 33 Cannon 172 | . . 172 Launcher 1 | . 1 . Special . | . . . Kinetic 191 | . 26 165 Thermal 33 | . . 33 Explosive 1 | . 1 . Electromagnetic 30 | . 23 7 Robot Hit Streak 20 | . 8 20 Robot Miss Streak 2 | . 1 2 Penetration Max . | . . . Secondary Targets 3 | . 2 1 Max Gunslinging Chain 1 | . 1 1 Shots Hit Robots 159 | . 35 124 Core Hits 56 | . 16 40 Critical Kills 3 | . . 3 Critical Parts Destroyed . | . . . Critical Strikes 10 | . 1 9 Meltdown 1 | . . 1 Destroy 4 | . . 4 Blast 3 | . . 3 Corrupt 2 | . 1 1 Melee Attacks 13 | . . 13 Impact . | . . . Slashing 13 | . . 13 Piercing . | . . . Sneak Attacks 1 | . . 1 Combat Hostiles . | . . . Follow-up Attacks . | . . . Damage Inflicted 2860 | . 415 2445 Guns 658 | . 344 314 Cannons 2053 | . . 2053 Explosions 58 | . 58 . Melee 68 | . . 68 Ramming 23 | . 13 10 Kinetic 1971 | . 150 1821 Thermal 527 | . 58 469 Explosive . | . . . Electromagnetic 271 | . 194 77 Impact . | . . . Slashing 68 | . . 68 Piercing . | . . . Highest Corruption 5 | . 3 5 Average Corruption 4 | . 2 4 Corruption Purged . | . . . Corruption Blocked . | . . . Effects 147 | . 26 121 Message Errors 40 | . 5 35 Matter Fused 44 | . 5 39 Heat Flow Errors 23 | . 5 18 Energy Discharges 11 | . 4 7 Parts Rejected 1 | . . 1 Parts Fused 2 | . . 2 Data Loss (minor) 16 | . 3 13 Data Loss (major) 5 | . 1 4 Misfires 5 | . 3 2 Overload Shots . | . . . Overflow Damage 18 | . . 18 Projectiles 18 | . . 18 Explosions . | . . . Melee . | . . . Knockbacks 21 | . . 21 Impact . | . . . Kinetic 21 | . . 21 Secondary . | . . . Self-Inflicted Damage 57 | . 57 . Shots 2 | . 2 . Rammed 4 | . . 4 Targets Rammed 6 | . 2 4 Kicked 2 | . 2 . Crushed . | . . . Highest Temperature 356 | . 178 356 Average Temperature 70 | . 45 85 Received Heat Transfer 753 | . 78 675 Effects 3 | . . 3 Shutdowns 1 | . . 1 Interference 2 | . . 2 Siege Activations . | . . . Robots Corrupted . | . . . Combat Hostiles . | . . . Parts Fried 1 | . 1 . Impact Corruptions . | . . . Robots Melted 1 | . . 1 Combat Hostiles . | . . . Parts Melted 2 | . . 2 Heat Transferred 851 | . . 851 Parts Sabotaged . | . . . Parts Stolen . | . . . Parts Stripped . | . . . Power Chain Reactions 1 | . 1 . Alert | -11 -10 -10 ------- Run | Yrd Mat Sub Peak Influence 172 | . 172 . Initial . | . . . Average 34 | . 34 . Maximum Alert Level . | . . . Low Security (%) 100 | 100 100 . Level 1 . | . . . Level 2 . | . . . Level 3 . | . . . Level 4 . | . . . Level 5 . | . . . High Security . | . . . Max Security . | . . . Squads Dispatched . | . . . Investigation . | . . . Extermination . | . . . Reinforcement . | . . . Assault . | . . . Garrison . | . . . Intercept . | . . . Searches Triggered . | . . . Construction Impeded . | . . . Haulers Reinforced . | . . . Active Scanning Responses . | . . . Cargo Convoy Interrupts . | . . . Stealth | -11 -10 -10 --------- Run | Yrd Mat Sub Distress Signals . | . . . Communications Jammed . | . . . Distress Signals . | . . . Times Spotted 51 | . 23 28 Peak Tracking Total 4 | . 3 4 Tactical Retreats 4 | . . 4 Traps | -11 -10 -10 ------- Run | Yrd Mat Sub Traps Triggered 6 | . 6 . Indirectly . | . . . Trap Hack Attempts . | . . . Triggered . | . . . Disarmed . | . . . Reprogrammed . | . . . Reused . | . . . Traps Extracted . | . . . Installed . | . . . Triggered . | . . . Machines | -11 -10 -10 ---------- Run | Yrd Mat Sub Machines Disabled 3 | . 1 2 Max in Single Turn 1 | . 1 1 Machines Repaired . | . . . Machines Dismantled . | . . . Machines Sabotaged . | . . . Overloaded Fab Kills . | . . . Hacking | -11 -10 -10 --------- Run | Yrd Mat Sub Machines Accessed 8 | . 8 . Terminals 7 | . 7 . Fabricators . | . . . Repair Stations 1 | . 1 . Recycling Units . | . . . Scanalyzers . | . . . Garrison Access . | . . . Total Hacks 23 | . 23 . Successful 18 | . 18 . Failed 5 | . 5 . Catastrophic 1 | . 1 . Database Lockouts . | . . . Manual 20 | . 20 . Terminals 22 | . 22 . Fabricators . | . . . Repair Stations 1 | . 1 . Recycling Units . | . . . Scanalyzers . | . . . Garrison Access . | . . . Terminal Hacks 7 | . 7 . Robot Analysis 2 | . 2 . Prototype ID Bank 3 | . 3 . Dispatch Records 1 | . 1 . Hauler Manifests 1 | . 1 . Fabricator Hacks . | . . . Repair Station Hacks . | . . . Recycling Unit Hacks . | . . . Scanalyzer . | . . . Garrison Access Hacks . | . . . Unauthorized Hacks 11 | . 11 . Terminals 10 | . 10 . Botnet 4 | . 4 . Skim 6 | . 6 . Fabricators . | . . . Repair Stations 1 | . 1 . Mechanics 1 | . 1 . Recycling Units . | . . . Scanalyzers . | . . . Garrison Access . | . . . Data Cores Recovered . | . . . Used . | . . . Hacking Detections 7 | . 7 . Full Trace Events . | . . . Feedback Events . | . . . Feedback Blocked . | . . . Robot Schematics Acquired . | . . . Robots Built . | . . . Authchips . | . . . Time . | . . . Total Robot Build Rating . | . . . Part Schematics Acquired . | . . . Parts Built . | . . . Authchips . | . . . Time . | . . . Total Part Build Rating . | . . . Parts Repaired . | . . . Time . | . . . Parts Recycled . | . . . Recycled Matter . | . . . Retrieved Matter . | . . . Retrieved Components . | . . . Parts Scanalyzed . | . . . Part Schematics Acquired . | . . . Parts Damaged . | . . . Bothacking | -11 -10 -10 ------------ Run | Yrd Mat Sub Used RIF Installer . | . . . Robots Hacked . | . . . Non-combat . | . . . Combat . | . . . Robot Hacks Applied . | . . . Relay Couplers Released . | . . . Fabnet Peak Effective % . | . . . Robots Rewired . | . . . Allies Hacked . | . . . Hacks Repelled . | . . . Allies | -11 -10 -10 -------- Run | Yrd Mat Sub Total Allies . | . . . Largest Group . | . . . Highest-Rated Group . | . . . Highest-Rated Ally . | . . . Total Orders . | . . . Ally Attacks . | . . . Total Damage . | . . . Kills . | . . . Allies Corrupted . | . . . Allies Melted . | . . . Intel | -11 -10 -10 ------- Run | Yrd Mat Sub Robot Analysis Total 2 | . 2 . Derelict Logs Recovered 2 | . . 2 Drone Launches . | . . . Drone Recoveries . | . . . Exploration | -11 -10 -10 ------------- Run | Yrd Mat Sub Turns Passed 6833 | 2 2438 4393 Spaces Moved 2387 | 1 746 1640 Core . | . . . Treads 1634 | . . 1634 Legs 753 | 1 746 6 Wheels . | . . . Hover . | . . . Flight . | . . . Fastest Speed 120 | 120 120 240 Average Speed 244 | 120 249 241 Slowest Speed 280 | 120 260 280 Overloaded Moves . | . . . Propulsion Burnouts . | . . . Robots Hopped . | . . . Cave-ins Triggered . | . . . Exploration Rate (%) 57 | 2 86 84 Regions Visited 2 Branch Regions 1 Pre-discovered Areas 2 | . 1 1 Known Exits Taken 1 | . 1 . Unknown Exits Taken 1 | 1 . . Scrap Searched 7 | . . 7 Spaces Dug 2 | . . 2 Terrain Destroyed 20 | . 9 11 Melee 1 | . . 1 Projectile 10 | . . 10 AOE 9 | . 9 . Terrain Rammed . | . . . Walls Destroyed . | . . . Machines Disabled . | . . . Actions | -11 -10 -10 --------- Run | Yrd Mat Sub Total 3142 | 2 1282 1858 Wait 512 | . 476 36 Move 2385 | . 745 1640 Hop . | . . . Pick Up 35 | . 21 14 Fast Attach 5 | . 2 3 Attach 9 | . . 9 Detach 1 | . . 1 Swap 15 | . 4 11 Drop 26 | 2 8 16 Fire 135 | . 24 111 Melee 13 | . . 13 Ram . | . . . Kick 2 | . 2 . Crush 4 | . . 4 Escape Stasis . | . . . Rewire . | . . . Trap . | . . . Miscellaneous . | . . . Route ------- -11/Scrapyard -10/Materials (discovered 6 exits: [*Mat x3] / *Min x2 / *Sub) -10/Subcaves (discovered 3 exits: *Mat x2 / [*Rec]) History --------- Turn | Location | Event 3 | -11/Scrapyard | Discovered new exit (range 0) 3 | -11/Scrapyard | Entered Materials 312 | -10/Materials | Build established: Mutant 333 | -10/Materials | Discovered new exit (range 12) 658 | -10/Materials | Discovered new exit (range 12) 781 | -10/Materials | Discovered new exit (range 15) 1492 | -10/Materials | Discovered new exit (range 11) 1689 | -10/Materials | Learned 2 Mines zone layouts 1781 | -10/Materials | Identified exit to Subcaves 1781 | -10/Materials | Identified exit to Mines 1812 | -10/Materials | Learned location of Subcaves (-10) 1845 | -10/Materials | Learned location of 2 exits from Materials 1897 | -10/Materials | Learned location of 1 exit from Storage 1935 | -10/Materials | Learned Storage trap positions 2441 | -10/Materials | Entered Subcaves 2442 | -10/Subcaves | Identified exit to Materials 2875 | -10/Subcaves | Shifting Twisted Machinery released Mak. Sword 2947 | -10/Subcaves | Shifting Twisted Machinery released Riot Gun 3726 | -10/Subcaves | Discovered new exit (range 14) 3836 | -10/Subcaves | A swath of the cavern ceiling suddenly collapsed 4017 | -10/Subcaves | Learned location of Zion (-7) 4017 | -10/Subcaves | Met a Zionite searching for "candidates" 4451 | -10/Subcaves | Core integrity fell below 50% 4893 | -10/Subcaves | Shifting Twisted Machinery released Battle Cannon 5368 | -10/Subcaves | Ambushed by Subdweller buried in earth 5467 | -10/Subcaves | Learned 2 Materials zone layouts 5827 | -10/Subcaves | Ambushed by Subdweller buried in earth 5911 | -10/Subcaves | Shifting Twisted Machinery released Battle Cannon 5931 | -10/Subcaves | Shifting Twisted Machinery released Battle Rifle 6161 | -10/Subcaves | A Subdweller sparked back to life 6161 | -10/Subcaves | A Subdweller sparked back to life 6514 | -10/Subcaves | A swath of the cavern ceiling suddenly collapsed 6743 | -10/Subcaves | Ambushed by Subdwellers from Twisted Machinery 6771 | -10/Subcaves | Core integrity fell below 20% 6834 | -10/Subcaves | Destroyed by TA-KMZ(R) with Subdweller Machine Gun Last Messages --------------- 06743_ TA-KMZ(R) emerges from the Twisted Machinery. 06746_ B0-7GX(R) knocked back. 06752_ B0-7GX(R) destroyed. 06758_ Slug penetrates Wall. 06758_ TA-KMZ(R) knocked back. 06764_ Slammed into TA-KMZ(R). 06778_ Ion Engine destroyed. 06780_ System corrupted: Lgt. Treads rejected. 06780_ Acquired Lgt. Treads. 06782_ Slammed into TA-KMZ(R). 06789_ Acquired 6 matter. 06795_ TA-KMZ(R) affixes Scrap Shield Fragment to Scrap Shield. 06802_ Acquired 21 matter. 06804_ TA-KMZ(R) knocked back. 06806_ Lgt. Treads destroyed. 06808_ TA-KMZ(R) knocked back. 06812_ System corrupted: Energy discharge (-39). 06812_ Med. Armor Plating destroyed. 06814_ TA-KMZ(R) knocked back. Map ----- +----------------------------------------------------+ | #####??# #??????????????? | | % ##?## "############# #??????????????? | | # #??#######???????????#####??????????????? | | # ##???????????????????????????????????????? | | # ##????????????????????????????????????????# | | ####?????????????????????????????????????##### | | ##???????????????????????????????????????##%## | | ##????????????????????????????????????????#[["## | | ##?????????????????????????????????????????##][ ] | | ##??????????????????????????????????????????#! #[# | | #???????????????????????????????????????????##%### | | ?????????????????????????????????????????????###?# | | ?????????????????????????????????????????????????? | | ?????????????????????????????????????????????????? | | ?????????????????????????????????????????????????? | | ?????????????????????????????????????????????????? | | ???????????????????????##?????###????????????????? | | ???????????????????????# ##### ###??????????????? | | ???????????????????????? ???????????????? | | ???????????????????????? ????????????????? | | ???????????????????#????# #?????????????????? | | ???????????????????# #### #?????????????????? | | ?????????????????####;#"" #?????????????????? | | ????????????????## # """ #??????????????????? | | ????????????????#" "" % ##?????????????????? | | ????????????????#" "" " @%% ###???????????????? | | ????????????????#"" # "##R ##??????????????? | | ????????????????##" ### #??????????????? | | ?????????????????#"< ??# % #??????????????? | | ?????????????????#" ## ##??????????????? | | ?????????????????### #### ##???????????????? | | ???????????????????# ## ???# ##???????????????? | | ???????????????????###? ???## ;####??????????### | | ??????????????????????# ????## #####?##### # | | ?????????????????????? ?????# ### # | | ????????????????????? #?????# # | | ????????????????????? ?#?????# ### # | | ???????????????????? ??????# #?# # | | ???????????????????? ???????# #?# ## | | ??????????????????? ???????# #?## ## | | ???????????????????#???????? ##??# #### | | ??????????????????????????? ????# #??# | | ??????????????????????????## ???## #??# | | ???????????????????????????## ???# #??# ## | | ????????????????????????????###??# #?# ## | | ????????????????????????????????# ### #? | | ????????????????????????????????# ### #? | | ????????????????????????????????## ##?# #? | | ?????????????????????????????????## #??# ## | | ??????????????????????????????????# #??# # | +----------------------------------------------------+ Best States ------------- Heat Dissipation 25 Energy Generation 15 Energy Capacity 250 Matter Stores 300 Matter Capacity 300 Sight Range 16 Terrain Scan Density 10 Armor Coverage 225 Resistance: KI 20 Resistance: TH 20 Resistance: EX 20 Resistance: EM 20 Resistance: I 20 Resistance: S 20 Resistance: P 20 Evasion (%) 50 Recoil Reduction 2 Offensive Hacking 10 Item Schematics ----------------- None Robot Schematics ------------------ None Fabricated ------------ Nothing Alien Tech Used ----------------- None Achievements -------------- None Challenges ------------ None Game ------ Seed HeavyPhysicsTreads Manual? 0 Play Time 00:38:17 Cumulative 324.6 hours Start 2024.08.29 @ 14:56:10 End 2024.08.30 @ 03:30:32 Sessions 1 Manual Loads 0 Difficulty Adventurer Special Mode None Game No. 249 Rogue 63 Adventurer 160 Explorer 26 Win Type - Total 1 Types 1/0/0/0/0/0/0/0/0 Lore% 77 Gallery% 74 Achievement% 68 Wizard Run 0 Options --------- Layout 2 ASCII 0 Keyboard 0 Movement Mouse Keybinds 0 Fullscreen 0 Font 18/CogNarrow Map View 64x51 Zoom Use 0% Tactical HUD 1 Map Filters NONE Filters BRIGHTNESS(115)|SATURATION(100)|LOW_CONTRAST(0,16,30) Steam 1 RUN: 63409165-e069-4187-b5e0-fd53c87135ae